bitfinex/quotes_ETHUSD_20241217
["timestamp","ask_amount","ask_price","bid_price","bid_amount"]
[1734446955359,0.787,4010.1,4008.5,0.8233]
[1734446955682,0.82155332,4010.0,4008.5,0.8233]
[1734446955960,0.787,4010.1,4008.5,0.8233]
[1734446956348,0.82154518,4010.0,4008.5,0.8233]
[1734446956525,0.16085452,4009.9,4008.5,0.8233]
[1734446956724,0.55,4010.0,4008.5,0.8233]
[1734446957325,2.05340437,4009.9,4008.5,0.8233]
[1734446957526,1.23205487,4009.9,4008.5,0.8233]
[1734446957866,0.82113318,4009.8,4008.5,0.8233]
[1734446958064,1.58454361,4010.0,4008.5,0.8233]
[1734446958362,2.745086,4009.9,4008.5,0.8233]
[1734446958565,0.6923359,4009.9,4008.5,0.8233]
[1734446958974,0.787,4010.1,4008.5,0.8233]
[1734446958975,3.8736811,4010.1,4008.5,0.8233]
[1734446959134,0.787,4010.1,4008.5,0.8233]
[1734446960544,5.64466093,4009.9,4008.5,0.8233]
[1734446960869,0.55,4009.8,4008.5,0.8233]
[1734446961671,0.55,4009.9,4008.5,0.8233]
[1734446961962,1.03454361,4010.2,4008.7,3.0]
[1734446962282,1.55181542,4010.5,4009.0,0.8269]
[1734446962429,1.55181542,4010.5,4009.4,0.8269]
[1734446962632,3.30408,4011.1,4009.4,0.8269]
[1734446962927,0.811,4011.1,4009.4,0.8269]
[1734446963153,2.55834495,4010.8,4009.4,0.8269]
[1734446963355,0.2558345,4010.7,4009.4,0.8269]
[1734446963557,0.811,4011.1,4009.4,0.8269]
[1734446963869,1.3699841,4011.0,4009.4,0.8269]
[1734446964040,1.3699841,4011.0,4009.6,2.55834495]
[1734446964243,0.8199841,4011.0,4010.2,0.8269]
[1734446964444,2.7179475,4011.9,4010.2,0.8269]
[1734446964445,0.8199841,4011.8,4010.2,0.8269]
[1734446964643,1.24252451,4011.8,4010.3,0.6385245]
[1734446965065,1.24252451,4011.8,4010.2,0.8269]
[1734446965367,0.42254041,4011.8,4010.2,0.8269]
[1734446966053,0.55,4011.7,4010.2,0.8269]
[1734446966439,1.03776799,4011.9,4010.2,0.8269]
[1734446968690,1.03776799,4011.9,4010.5,3.14726215]
[1734446968975,1.03776799,4011.9,4010.7,0.8269]
[1734446970276,0.81972024,4012.3,4010.7,0.8269]
[1734446970490,0.811,4012.4,4010.8,0.69741622]
[1734446970633,0.55,4012.3,4010.8,0.69741622]
[1734446970833,0.55,4012.3,4010.9,0.8269]
[1734446971291,1.03776799,4012.5,4011.2,0.8269]
[1734446971439,1.03776799,4012.5,4011.4,0.8269]
[1734446972886,1.29720999,4012.5,4011.4,0.8269]
[1734446974055,1.03776799,4012.5,4011.4,0.8269]
[1734446975407,1.03776799,4012.7,4011.4,0.8269]
[1734446975611,1.03776799,4012.8,4011.4,0.8269]
[1734446975905,1.58776799,4012.9,4011.4,0.8269]
[1734446976103,2.05098563,4012.8,4011.4,1.20959]
[1734446976963,0.82038606,4012.8,4011.4,1.20959]
[1734446977157,0.18002992,4012.9,4011.4,1.20959]
[1734446977363,2.26862843,4012.9,4011.5,0.02492562]
[1734446977611,0.24364722,4013.0,4011.6,0.8059]
[1734446977791,0.24364722,4013.0,4011.7,0.02492376]
[1734446978196,0.24364722,4013.0,4011.6,0.8059]
[1734446978571,0.82208925,4012.9,4011.6,0.8059]
[1734446978765,0.24364722,4013.0,4011.6,0.8059]
[1734446979017,0.82199154,4012.9,4011.6,0.8059]
[1734446979162,0.24364722,4013.0,4011.6,0.8059]
[1734446979665,0.37178874,4013.0,4011.6,0.8059]
[1734446979898,1.23283024,4012.9,4011.6,0.8059]
[1734446980109,1.03776799,4012.8,4011.6,0.8059]
[1734446980370,1.2328669,4012.7,4011.6,0.8059]
[1734446980528,1.2328669,4012.7,4011.2,0.8059]
[1734446980529,2.33926799,4012.6,4011.2,0.8059]
[1734446980690,1.03776799,4012.3,4011.2,0.8059]
[1734446980895,1.03776799,4012.1,4011.2,0.8059]
[1734446981212,0.55,4012.0,4011.2,0.8059]
[1734446981426,0.55,4012.2,4011.2,0.8059]
[1734446981572,0.55,4012.3,4011.2,0.8059]
[1734446981930,3.04248,4012.1,4009.9,0.8059]
[1734446982095,4.08024799,4012.1,4009.9,0.8059]
[1734446982294,0.55,4011.9,4009.9,0.8059]
[1734446982853,0.55,4012.0,4009.9,0.8059]
[1734446982978,0.7515,4011.7,4009.9,0.8059]
[1734446983177,0.55,4011.5,4009.9,0.8059]
[1734446983625,1.03776799,4011.3,4009.9,0.8059]
[1734446984180,2.60522123,4011.2,4009.9,0.8059]
[1734446984429,2.05522123,4011.2,4009.9,0.8059]
[1734446984637,2.05522123,4011.2,4010.0,0.02493487]
[1734446984791,1.03776799,4011.9,4010.1,0.8059]
[1734446984988,1.03776799,4011.9,4010.3,0.8059]
[1734446984989,3.09265564,4011.9,4010.3,0.8059]
[1734446985227,1.23302472,4012.0,4010.6,3.8059]
[1734446985431,1.23302472,4012.0,4010.8,0.8059]
[1734446985641,1.23302472,4012.0,4011.2,0.8059]
[1734446985852,1.23302472,4012.0,4011.1,3.02492428]
[1734446986133,1.23302472,4012.0,4011.7,0.8017]
[1734446986836,2.59441997,4013.4,4011.7,0.8017]
[1734446987124,2.59441997,4013.4,4012.1,3.0]
[1734446987327,2.59441997,4013.4,4012.3,0.8017]
[1734446991904,1.55665198,4013.4,4012.3,0.8017]
[1734446992291,2.49159,4013.5,4012.3,0.8017]
[1734446992493,1.76302077,4013.7,4012.3,0.8017]
[1734446992735,4.25450077,4013.7,4012.3,0.8017]
[1734446992975,2.80078876,4013.7,4012.3,0.8017]
[1734446993140,2.49155,4013.6,4012.3,0.8017]
[1734446993693,2.49159,4013.5,4012.3,0.8017]
[1734446993924,2.49155,4013.6,4012.3,0.8017]
[1734446994122,1.76302077,4013.7,4011.6,0.8017]
[1734446994305,2.49171,4013.3,4011.7,0.63566642]
[1734446994504,2.55496415,4013.5,4011.8,0.02492351]
[1734446994724,2.55496415,4013.5,4011.6,0.8017]
[1734446995240,2.49172,4013.3,4011.6,0.8017]
[1734446995894,2.55496415,4013.5,4011.6,0.8017]
[1734446996442,2.73559722,4013.0,4011.6,0.8017]
[1734446996743,2.49203,4012.8,4011.6,0.8017]
[1734446997042,0.55,4012.9,4011.6,0.8017]
[1734446997248,0.55,4012.7,4011.6,0.8017]
[1734446997540,2.55496415,4012.5,4011.6,0.8017]
[1734446998542,2.55496415,4012.9,4011.6,0.8017]
[1734446998946,0.51718794,4013.0,4011.6,0.8017]
[1734446999346,0.24364722,4013.0,4011.6,0.8017]
[1734447000699,0.24364722,4013.0,4011.1,0.02492336]
[1734447000895,0.24364722,4013.0,4011.2,0.8318]
[1734447002794,2.55496415,4012.9,4011.2,0.8318]
[1734447003208,2.55496415,4012.5,4011.2,0.8318]
[1734447003417,0.58696942,4012.4,4011.2,0.8318]
[1734447004102,1.58776799,4012.8,4011.2,0.8318]
[1734447004304,0.82134803,4012.7,4011.2,0.8318]
[1734447004503,1.03776799,4012.8,4011.2,0.8318]
[1734447004747,1.85957967,4012.8,4011.2,0.8318]
[1734447005103,2.05452921,4012.8,4011.2,0.8318]
[1734447005404,1.28141521,4013.0,4011.3,0.7795]
[1734447005643,1.28141521,4013.0,4011.3,0.8044234]
[1734447005827,1.28141521,4013.0,4011.5,0.7795]
[1734447006036,1.28141521,4013.0,4011.7,2.55496415]
[1734447006221,1.28141521,4013.0,4011.9,0.7795]
[1734447006558,1.28141521,4013.0,4012.7,0.7795]
[1734447011375,0.24364722,4013.0,4012.7,0.7795]
[1734447011558,0.24364722,4013.0,4012.8,3.16778368]
[1734447011848,0.24364722,4013.0,4012.9,3.39472837]
[1734447012063,0.24364722,4013.0,4012.9,4.17422837]
[1734447012384,0.24364722,4013.0,4012.9,0.7795]
[1734447013489,0.24364722,4013.0,4012.3,0.7795]
[1734447014236,0.24364722,4013.0,4012.3,3.92236619]
[1734447015054,0.24364722,4013.0,4012.4,3.0]
[1734447015899,0.24364722,4013.0,4012.9,0.7795]
[1734447016042,0.24364722,4013.0,4012.9,1.17173662]
[1734447016920,0.24364722,4013.0,4012.9,4.17173662]
[1734447020683,0.24364722,4013.0,4012.9,1.17173662]
[1734447020884,0.24364722,4013.0,4012.9,0.7795]
[1734447021096,0.24364722,4013.0,4012.9,0.80441736]
[1734447021257,0.24364722,4013.0,4012.9,0.7795]
[1734447022287,0.24364722,4013.0,4012.9,3.7795]
[1734447028048,0.24364722,4013.0,4012.9,6.33296708]
[1734447028254,0.24364722,4013.0,4012.5,3.32546708]
[1734447028467,0.24364722,4013.0,4011.4,0.772]
[1734447028694,1.05874722,4013.0,4011.5,2.55346708]
[1734447028987,0.02630219,4012.9,4011.5,2.55346708]
[1734447029620,0.02630219,4012.9,4011.4,0.772]
[1734447029621,0.82686477,4012.8,4011.9,2.55346708]
[1734447029769,0.82686477,4012.8,4012.4,0.772]
[1734447029971,0.82686477,4012.8,4012.7,2.55346708]
[1734447030169,0.24364722,4013.0,4012.8,3.0]
[1734447030597,0.24364722,4013.0,4012.7,0.33503855]
[1734447030778,0.24364722,4013.0,4012.4,3.772]
[1734447030992,0.24364722,4013.0,4012.7,2.55346708]
[1734447033080,0.24364722,4013.0,4012.4,0.772]
[1734447033280,0.05710756,4012.9,4012.4,3.0]
[1734447033496,0.24364722,4013.0,4012.0,0.8206]
[1734447033680,0.7517,4012.9,4012.0,0.8206]
[1734447033892,0.80880756,4012.9,4012.0,1.15800671]
[1734447034098,0.24364722,4013.0,4012.1,0.0249199]
[1734447034307,0.24364722,4013.0,4012.0,1.15800671]
[1734447034513,0.05700673,4012.9,4012.7,2.55346708]
[1734447034880,0.24364722,4013.0,4012.3,2.55346708]
[1734447035200,0.05700673,4012.9,4012.4,3.0]
[1734447035370,0.24364722,4013.0,4012.4,3.0]
[1734447036367,0.24364722,4013.0,4012.1,0.8206]
[1734447036571,0.05699163,4012.9,4012.1,0.8206]
[1734447036808,0.24364722,4013.0,4012.1,0.8206]
[1734447037034,0.05692256,4012.8,4012.2,0.63740671]
[1734447037237,0.05692256,4012.8,4012.3,2.55346708]
[1734447037832,0.05698962,4012.7,4012.3,2.55346708]
[1734447038138,0.7517,4012.6,4011.7,0.8206]
[1734447038439,0.7517,4012.6,4011.5,2.55346708]
[1734447038639,0.7517,4012.6,4011.5,2.91195875]
[1734447040240,0.7517,4012.6,4011.5,3.27723179]
[1734447040436,0.7517,4012.6,4011.6,3.0]
[1734447040644,0.24364722,4013.0,4011.9,2.55346708]
[1734447041209,0.24364722,4013.0,4012.4,3.0]
[1734447041417,0.24364722,4013.0,4012.5,0.55534671]
[1734447041649,0.24364722,4013.0,4012.7,2.55346708]
[1734447041837,0.24364722,4013.0,4012.8,0.02491644]
[1734447042003,0.24364722,4013.0,4012.9,0.8206]
[1734447042629,0.24364722,4013.0,4012.8,3.0]
[1734447042829,0.24364722,4013.0,4012.9,0.55534671]
[1734447043345,0.24364722,4013.0,4012.5,1.37594671]
[1734447043526,0.29908173,4013.0,4012.5,1.37594671]
[1734447043729,0.24364722,4013.0,4012.5,0.55534671]
[1734447043927,0.05542594,4012.9,4012.3,2.55346708]
[1734447044128,0.24364722,4013.0,4012.3,2.55346708]
[1734447044443,0.05542594,4012.9,4012.3,2.55346708]
[1734447044940,0.24364722,4013.0,4012.3,2.55346708]
[1734447045450,0.05354911,4012.9,4012.7,2.55346708]
[1734447045746,0.24364722,4013.0,4012.8,0.25534671]
[1734447046108,0.05353902,4012.9,4012.8,0.25534671]
[1734447046420,0.24364722,4013.0,4012.3,2.55346708]
[1734447046929,0.0536247,4012.9,4012.1,0.8206]
[1734447047135,0.0536247,4012.9,4011.7,0.8032]
[1734447047308,0.7705,4012.8,4011.5,2.91195875]
[1734447047502,0.7705,4012.8,4011.6,0.73252324]
[1734447047724,0.05369327,4012.7,4011.6,0.73252324]
[1734447047928,0.05369327,4012.7,4011.5,2.55346708]
[1734447048137,0.05369327,4012.7,4011.6,0.02492203]
[1734447048362,0.05369327,4012.7,4011.5,2.55346708]
[1734447048510,0.05369327,4012.7,4012.0,2.55346708]
[1734447049246,0.05369327,4012.7,4011.6,3.0]
[1734447049429,0.05369327,4012.7,4011.7,0.55534671]
[1734447049630,1.01414722,4013.0,4011.7,0.92042098]
[1734447049805,0.05332177,4012.6,4011.7,0.55534671]
[1734447050008,1.01414722,4013.0,4011.7,0.55534671]
[1734447050241,1.01414722,4013.0,4011.8,0.85615097]
[1734447050408,0.05333737,4012.9,4011.9,0.44114977]
[1734447050610,0.05333737,4012.9,4012.2,2.55346708]
[1734447050804,0.24364722,4013.0,4012.2,3.35666708]
[1734447051054,0.24364722,4013.0,4012.6,2.55346708]
[1734447051204,0.05304501,4012.9,4012.7,3.0]
[1734447051410,0.24364722,4013.0,4012.9,3.0]
[1734447051736,0.94042077,4013.7,4013.0,1.16827427]
[1734447051905,0.94042077,4013.7,4013.6,5.55346708]
[1734447052106,0.94042077,4013.7,4013.6,7.69326593]
[1734447052352,0.94042077,4013.7,4013.6,9.27075051]
[1734447052651,0.94042077,4013.7,4013.6,2.86022956]
[1734447052953,0.94042077,4013.7,4013.6,8.41369664]
[1734447053106,0.9903552,4013.7,4013.6,7.86369664]
[1734447053318,0.9903552,4013.7,4013.6,6.83621206]
[1734447053547,0.9903552,4013.7,4013.6,7.69137538]
[1734447053943,0.9903552,4013.7,4013.6,2.1379083]
[1734447054606,0.9903552,4013.7,4013.6,0.85516332]
[1734447054811,0.9903552,4013.7,4013.3,1.03440546]
[1734447058333,0.9903552,4013.7,4013.3,4.17679542]
[1734447058915,0.9903552,4013.7,4013.3,1.03440546]
[1734447059126,0.9903552,4013.7,4013.3,7.17679542]
[1734447059317,0.9903552,4013.7,4013.4,0.8032]
[1734447061022,0.9903552,4013.7,4013.6,3.0]
[1734447061224,0.9903552,4013.7,4013.4,0.8032]
[1734447061557,0.9903552,4013.7,4013.1,1.03440546]
[1734447061712,0.9903552,4013.7,4013.0,0.7735]
[1734447062385,0.9903552,4013.7,4012.8,3.14238996]
[1734447062702,0.7612,4013.6,4012.6,1.03440546]
[1734447063142,0.04898834,4013.5,4012.6,1.03440546]
[1734447063342,0.17506091,4013.4,4012.7,3.16730705]
[1734447063539,0.04897121,4013.3,4013.2,3.14238996]
[1734447063765,0.94042077,4013.7,4013.2,3.91588996]
[1734447063969,0.04732456,4013.3,4013.2,3.91588996]
[1734447064166,0.94042077,4013.7,4013.2,3.91588996]
[1734447064372,0.94042077,4013.7,4012.6,1.03440546]
[1734447064373,0.0471077,4013.3,4012.8,3.0]
[1734447064542,0.7612,4013.5,4012.7,3.14238996]
[1734447064743,0.04709913,4013.2,4012.7,3.14238996]
[1734447064990,0.7612,4013.5,4012.7,3.14238996]
[1734447065289,0.0471057,4013.1,4012.7,3.14238996]
[1734447065590,0.94042077,4013.7,4012.7,3.71478695]
[1734447065889,0.94042077,4013.7,4012.7,3.14238996]
[1734447066065,0.04714852,4013.6,4012.8,3.0]
[1734447067172,0.04714852,4013.6,4012.6,1.03440546]
[1734447067685,0.04714852,4013.6,4012.2,3.14238996]
[1734447067884,0.8327,4013.5,4012.2,3.14238996]
[1734447068038,0.18202693,4013.4,4012.7,3.14238996]
[1734447068241,0.04719189,4013.4,4013.2,3.14238996]
[1734447068446,0.04719189,4013.4,4013.3,3.0]
[1734447068654,0.94042077,4013.7,4013.3,3.0]
[1734447068881,0.04709103,4013.4,4013.3,3.0]
[1734447069038,0.94042077,4013.7,4013.4,0.8162]
[1734447069240,0.94042077,4013.7,4013.5,0.85427955]
[1734447070303,0.94042077,4013.7,4013.4,0.8162]
[1734447070644,63.26024164,4013.8,4013.5,0.55]
[1734447070849,63.26024164,4013.8,4013.7,6.69238996]
[1734447071140,63.26024164,4013.8,4013.7,12.03192898]
[1734447071341,63.26024164,4013.8,4013.7,9.11994298]
[1734447071567,63.26024164,4013.8,4013.7,10.62016996]
[1734447071777,63.30469096,4013.8,4013.7,7.50858996]
[1734447073470,63.30469096,4013.8,4013.7,15.59239196]
[1734447073675,63.30469096,4013.8,4013.7,16.37239196]
[1734447073980,63.30469096,4013.8,4013.7,9.88995196]
[1734447074278,63.30469096,4013.8,4013.7,7.50858996]
[1734447074480,63.30469096,4013.8,4013.7,12.11591096]
[1734447074723,62.1936164,4013.8,4013.7,13.32750206]
[1734447074860,60.98481888,4013.8,4013.7,13.32750206]
[1734447075363,42.70894624,4013.8,4013.7,15.82856676]
[1734447075563,42.55473969,4013.8,4013.7,17.53434458]
[1734447075757,39.79086629,4013.8,4013.7,19.59724383]
[1734447076284,31.08238398,4013.8,4013.7,30.3434788]
[1734447076450,31.08238398,4013.8,4013.7,29.99695782]
[1734447076781,31.08238398,4013.8,4013.7,31.02786393]
[1734447076983,31.08238398,4013.8,4013.7,30.65903112]
[1734447077216,31.08238398,4013.8,4013.7,29.74856367]
[1734447077398,22.37390167,4013.8,4013.7,29.74856367]
[1734447077689,22.37390167,4013.8,4013.7,29.32253971]
[1734447078287,22.32390167,4013.8,4013.7,29.32253971]
[1734447078497,11.18723787,4013.8,4013.7,29.32253971]
[1734447078673,11.18723787,4013.8,4013.7,28.2916336]
[1734447078980,2.48139825,4013.8,4013.7,28.2916336]
[1734447079189,9.91029691,4014.0,4013.9,12.52983628]
[1734447079396,0.60856406,4014.0,4013.9,64.3623037]
[1734447079559,0.60856406,4014.0,4013.9,64.73375523]
[1734447079747,0.31029551,4014.0,4013.9,55.97243251]
[1734447080148,0.31029551,4014.0,4013.9,45.82629051]
[1734447080349,13.32,4014.1,4014.0,3.25]
[1734447080583,13.32,4014.1,4014.0,45.69096523]
[1734447080804,13.32,4014.1,4014.0,34.980549]
[1734447080949,13.32,4014.1,4014.0,34.396019]
[1734447081158,13.32,4014.1,4014.0,43.76790951]
[1734447081358,9.76045455,4014.1,4014.0,45.41421735]
[1734447081558,2.65001953,4014.5,4014.4,0.86913628]
[1734447081791,2.35995653,4014.5,4014.4,58.27982567]
[1734447082000,1.5773648,4014.5,4014.4,60.21091876]
[1734447082205,9.02823712,4014.9,4014.8,0.24983628]
[1734447082524,1.75537592,4014.9,4014.8,59.6234801]
[1734447082805,0.8189,4017.5,4015.4,0.24983628]
[1734447082955,0.8189,4017.5,4015.4,42.2915889]
[1734447083159,0.8189,4017.5,4015.4,39.38285554]
[1734447083383,0.8189,4017.5,4015.5,3.0]
[1734447083759,0.8189,4017.5,4016.3,3.0]
[1734447084502,0.8689,4018.0,4016.4,7.714893]
[1734447084709,0.8689,4018.0,4016.4,7.170253]
[1734447084853,0.8689,4018.0,4016.3,3.0]
[1734447085053,0.8689,4018.0,4016.4,3.0]
[1734447085258,0.8689,4018.0,4016.4,5.331235]
[1734447085592,0.8689,4018.0,4016.4,5.90612455]
[1734447085789,0.8689,4018.0,4016.4,5.881235]
[1734447086033,1.1181373,4016.5,4016.4,5.881235]
[1734447086598,1.1181373,4016.5,4016.4,14.611235]
[1734447087605,1.1181373,4016.5,4016.4,14.73708916]
[1734447087760,0.3404939,4016.5,4016.4,15.09373304]
[1734447088115,0.05,4018.0,4017.0,0.24983628]
[1734447088275,0.05,4018.0,4017.0,52.50136741]
[1734447088611,0.05,4018.0,4017.0,41.32159469]
[1734447088757,0.05,4018.0,4017.0,32.77676097]
[1734447089104,0.05,4018.0,4017.0,33.02676097]
[1734447089316,0.05,4018.0,4017.3,0.24983628]
[1734447089514,0.05,4018.0,4017.8,3.0]
[1734447089833,0.05,4018.0,4017.9,22.71555802]
[1734447090109,0.8189,4020.3,4018.3,0.24983628]
[1734447090419,0.8189,4020.3,4019.0,3.0]
[1734447090564,0.8189,4020.3,4019.1,0.361766]
[1734447090764,0.8189,4020.3,4019.1,0.02486841]
[1734447090961,0.8189,4020.3,4018.7,0.55]
[1734447091183,3.13635681,4020.2,4018.7,0.02487117]
[1734447091423,0.7504,4019.6,4017.3,0.24983628]
[1734447091713,0.7504,4019.6,4017.4,0.02487681]
[1734447091916,3.13635681,4019.2,4017.4,0.02487681]
[1734447092116,3.13635681,4018.7,4017.1,0.55]
[1734447092258,3.13635681,4018.2,4017.1,0.55]
[1734447092456,0.7004,4018.0,4016.2,0.02488614]
[1734447092660,0.7004,4018.0,4016.1,0.02488734]
[1734447092894,0.7004,4018.0,4016.0,1.02290966]
[1734447092895,0.7004,4018.0,4016.0,1.04779767]
[1734447093071,0.7004,4018.0,4016.1,0.02488901]
[1734447093269,3.13635681,4017.7,4016.0,1.37955354]
[1734447093470,3.13635681,4016.7,4015.5,0.12217906]
[1734447093999,0.02999028,4016.6,4015.0,0.02489474]
[1734447094185,3.13635681,4017.2,4015.1,0.35664388]
[1734447094390,3.13635681,4017.2,4015.2,0.02489607]
[1734447094591,0.31363568,4017.1,4015.2,0.02489607]
[1734447094798,3.13635681,4016.7,4014.8,0.02489607]
[1734447094971,0.34320477,4017.1,4015.3,3.0]
[1734447094972,0.02956054,4017.0,4015.3,3.0]
[1734447095287,0.02956054,4017.0,4015.2,0.36388538]
[1734447095288,0.02952635,4016.6,4015.4,0.38877984]
[1734447095605,0.0295178,4016.5,4015.4,0.02489446]
[1734447095801,3.45245856,4017.1,4015.4,0.02489446]
[1734447095966,0.02825853,4016.4,4014.9,0.02489448]
[1734447096161,0.8119,4016.3,4015.2,0.02489448]
[1734447096500,0.8119,4016.3,4014.7,0.12491209]
[1734447096501,0.02816575,4016.2,4014.7,0.12491209]
[1734447096663,0.8119,4016.0,4014.4,0.72052926]
[1734447096863,0.8119,4016.0,4014.1,0.02490083]
[1734447097087,3.1668943,4016.1,4014.0,0.1237195]
[1734447097088,0.8119,4015.8,4014.0,0.1237195]
[1734447097429,0.02787573,4015.7,4014.1,0.0249023]
[1734447097715,0.8119,4015.6,4014.1,0.0249023]
[1734447097885,0.8119,4015.6,4014.1,0.02490141]
[1734447098088,0.02764669,4015.5,4014.1,0.02490141]
[1734447098294,0.02764669,4015.5,4014.2,0.69766259]
[1734447098477,0.8119,4015.6,4014.3,0.02490104]
[1734447098679,0.02733529,4015.4,4014.4,0.33377721]
[1734447099015,0.8119,4015.6,4014.4,0.33377721]
[1734447099187,0.8119,4015.6,4013.9,0.36388538]
[1734447099387,0.83924388,4015.5,4014.0,0.02490187]
[1734447099603,0.8119,4015.4,4014.0,0.02490187]
[1734447099786,0.8119,4015.4,4014.1,0.69766259]
[1734447100011,0.02732677,4015.3,4014.2,0.02490067]
[1734447100218,0.8119,4015.4,4014.3,0.69766259]
[1734447100717,0.8119,4015.4,4013.7,0.12572514]
[1734447100918,0.00613844,4015.3,4014.8,3.0]
[1734447101220,1.03194791,4017.2,4015.0,3.0]
[1734447101535,0.8119,4017.1,4016.1,3.0]
[1734447101732,0.8119,4017.1,4016.2,0.02489122]
[1734447101906,0.8119,4017.1,4016.3,3.0]
[1734447102238,0.8119,4017.1,4016.2,0.02489122]
[1734447102542,1.03194791,4017.2,4016.5,0.1002]
[1734447102698,1.03194791,4017.2,4016.6,0.02488772]
[1734447103030,1.03194791,4017.2,4016.6,0.35866493]
[1734447103231,1.03194791,4017.2,4016.8,3.0]
[1734447103434,1.03194791,4017.2,4017.0,3.0]
[1734447103734,1.03194791,4017.2,4017.1,7.282839]
[1734447103935,1.03194791,4017.2,4017.1,7.802289]
[1734447104409,1.05877528,4017.2,4017.1,7.802289]
[1734447104812,1.05877528,4017.2,4017.1,8.352289]
[1734447105030,0.8119,4018.4,4017.2,3.0]
[1734447105199,0.8119,4018.4,4017.1,7.147733]
[1734447105200,0.8119,4018.4,4017.3,0.02488292]
[1734447106173,0.8119,4018.4,4017.2,0.55]
[1734447106315,0.8119,4018.4,4017.2,0.02488342]
[1734447106721,0.8119,4018.4,4017.2,0.02488297]
[1734447107031,0.8119,4018.4,4017.2,0.02488378]
[1734447107717,0.8119,4018.4,4017.2,0.57488378]
[1734447108246,0.8119,4018.4,4017.2,0.55]
[1734447108450,0.8119,4018.4,4017.2,0.0248812]
[1734447108819,0.8119,4018.4,4016.8,0.55]
[1734447109151,3.13882288,4018.6,4016.2,0.02488752]
[1734447109152,0.7629,4018.2,4016.2,0.02488752]
[1734447109557,0.7629,4018.0,4016.2,0.02488752]
[1734447109849,0.39507229,4018.3,4016.4,0.12358888]
[1734447109850,0.02840541,4017.9,4016.4,0.12358888]
[1734447110162,0.79130541,4017.9,4016.4,0.12358888]
[1734447110299,0.7629,4017.9,4015.4,0.02488915]
[1734447110500,0.7629,4017.7,4015.4,0.32802255]
[1734447110815,0.02771924,4017.6,4015.4,0.32802255]
[1734447111001,0.7629,4017.5,4015.4,0.02488915]
[1734447111197,0.79053505,4017.5,4015.4,0.02488915]
[1734447111400,0.79053505,4017.5,4014.9,0.024894]
[1734447111656,0.7629,4017.0,4014.9,0.024894]
[1734447111997,0.02745266,4016.9,4014.9,0.024894]
[1734447112250,0.02745266,4016.9,4015.0,0.28483996]
[1734447112445,0.02745266,4016.9,4015.1,0.14740115]
[1734447113000,0.02745266,4016.9,4015.1,0.45053455]
[1734447113206,0.02745266,4016.9,4015.3,0.55]
[1734447113441,0.02745266,4016.9,4015.7,3.0]
[1734447113656,0.7629,4017.0,4015.7,0.0248935]
[1734447113999,0.7629,4017.0,4015.7,3.0248935]
[1734447114205,0.7629,4017.7,4016.3,3.0]
[1734447114518,0.7629,4017.7,4016.4,0.32802208]
[1734447115051,0.7629,4017.7,4016.4,0.3031334]
[1734447115269,0.7629,4017.7,4016.5,0.02488803]
[1734447115411,0.02657417,4017.6,4016.5,0.02488803]
[1734447115804,0.02657417,4017.6,4016.7,3.0]
[1734447116004,0.02657417,4017.6,4016.0,0.02488807]
[1734447116244,0.7629,4017.7,4016.0,0.02488807]
[1734447116462,0.7629,4017.7,4016.0,0.57488807]
[1734447117258,0.02716941,4017.6,4016.1,0.3031334]
[1734447117420,0.02716941,4017.6,4016.2,0.02488646]
[1734447117613,0.7629,4017.7,4016.5,3.0]
[1734447117962,0.7629,4017.7,4016.6,0.14627143]
[1734447118166,0.7629,4017.7,4016.6,0.12138401]
[1734447118513,0.7629,4017.7,4016.0,0.55]
[1734447118752,0.7629,4017.7,4015.9,0.12508858]
[1734447118753,0.7629,4017.7,4015.9,0.02488858]
[1734447118953,0.02716941,4017.6,4016.1,0.02488927]
[1734447119120,0.02716941,4017.6,4016.5,0.12281337]
[1734447119471,0.02716941,4017.6,4016.1,0.02488927]
[1734447119984,0.02716941,4017.6,4015.8,0.55]
[1734447119985,0.02716941,4017.6,4016.2,0.02488928]
[1734447120514,0.7629,4017.7,4016.2,0.02488928]
[1734447120922,0.7629,4017.7,4016.3,0.02488885]
[1734447121118,0.7629,4017.7,4015.5,0.02488889]
[1734447121119,3.90172288,4017.7,4015.5,0.02488889]
[1734447121351,0.02756291,4017.6,4015.6,0.3031334]
[1734447121557,0.762,4017.5,4016.3,3.0]
[1734447121755,0.762,4017.5,4015.6,0.3031334]
[1734447121756,0.762,4017.5,4016.4,0.02488964]
[1734447121968,0.02753068,4017.4,4017.3,3.0]
[1734447122124,0.02753068,4017.4,4016.6,0.02488551]
[1734447122320,0.762,4018.0,4016.6,0.02488551]
[1734447122575,0.02753308,4017.9,4016.6,0.55]
[1734447122755,0.36447337,4017.9,4016.9,3.0]
[1734447123074,0.02753308,4017.9,4016.6,0.0248879]
[1734447123424,0.02753308,4017.9,4016.7,0.55]
[1734447123624,0.02753308,4017.9,4016.8,0.41828806]
[1734447123950,0.02753308,4017.9,4017.0,3.0]
[1734447124146,1.03194791,4018.1,4017.2,3.0]
[1734447124462,1.03194791,4018.1,4017.3,45.09462888]
[1734447124654,1.03194791,4018.1,4017.4,14.156429]
[1734447124967,1.03194791,4018.1,4017.6,3.0]
[1734447125263,1.03194791,4018.1,4017.8,3.0]
[1734447125483,1.03194791,4018.1,4017.6,3.0]
[1734447125641,1.03194791,4018.1,4017.7,0.55]
[1734447125642,0.0284542,4018.0,4017.7,0.55]
[1734447125973,0.0284542,4018.0,4017.4,0.1002]
[1734447126269,1.03194791,4018.1,4016.8,9.02320355]
[1734447126562,0.762,4018.0,4016.1,0.1002]
[1734447126725,0.7904542,4018.0,4016.2,3.15920434]
[1734447126925,0.7904542,4018.0,4016.7,0.12567504]
[1734447127124,0.7904542,4018.0,4016.8,0.02488459]
[1734447127550,0.762,4018.0,4016.7,3.25999135]
[1734447127952,0.762,4018.0,4016.8,0.02488561]
[1734447127953,0.02844565,4017.9,4016.8,0.02488561]
[1734447128262,0.762,4018.0,4016.7,0.1505613]
[1734447128566,0.762,4018.0,4016.7,0.12567504]
[1734447129092,0.02806759,4017.9,4016.8,3.15920437]
[1734447129227,0.762,4018.0,4016.8,3.15920437]
[1734447129427,0.762,4018.0,4016.8,3.45240792]
[1734447129627,0.762,4018.0,4016.9,0.55]
[1734447129857,0.762,4018.0,4017.0,0.02488418]
[1734447130088,0.762,4018.8,4017.4,3.1002]
[1734447130329,0.762,4018.8,4017.5,0.55]